bitfinex-derivatives/quotes_SOLF0:USTF0_20250905
["timestamp","ask_amount","ask_price","bid_price","bid_amount"]
[1757061204348,4.3444,207.14,207.11,0.03268332]
[1757061204552,7.47,207.12,207.11,0.03268332]
[1757061209050,11.8146,207.12,207.11,0.03268332]
[1757061211946,4.3442,207.14,207.11,0.03268332]
[1757061212145,11.8142,207.14,207.11,0.03268332]
[1757061212949,7.47,207.14,207.11,0.03268332]
[1757061213143,7.47,207.15,207.12,7.73]
[1757061213553,4.3438,207.16,207.11,0.03268332]
[1757061213852,7.47,207.15,207.11,0.03268332]
[1757061214054,4.3438,207.16,207.11,0.03268332]
[1757061214749,7.47,207.15,207.11,0.03268332]
[1757061214952,4.3438,207.16,207.11,0.03268332]
[1757061215549,7.47,207.15,207.11,0.03268332]
[1757061215949,4.3438,207.16,207.11,0.03268332]
[1757061216151,7.47,207.14,207.11,0.03268332]
[1757061217053,4.3441,207.15,207.11,0.03268332]
[1757061218055,7.47,207.14,207.11,0.03268332]
[1757061218352,4.3441,207.15,207.11,0.03268332]
[1757061218954,7.47,207.14,207.11,0.03268332]
[1757061219748,4.3441,207.15,207.11,0.03268332]
[1757061219953,7.47,207.14,207.11,0.03268332]
[1757061222153,7.47,207.21,207.11,7.76268332]
[1757061222349,126.39,207.21,207.11,7.76268332]
[1757061222758,7.47,207.21,207.11,7.76268332]
[1757061223461,7.47,207.17,207.11,7.76268332]
[1757061226771,4.3439,207.16,207.11,7.76268332]
[1757061227467,4.3439,207.16,207.11,0.03268332]
[1757061227661,7.47,207.15,207.12,7.73]
[1757061232267,12.0541,207.15,207.11,0.03268332]
[1757061232566,7.71,207.14,207.11,0.03268332]
[1757061232766,4.3436,207.17,207.11,0.03268332]
[1757061233066,12.0536,207.17,207.11,7.56268332]
[1757061240168,7.71,207.17,207.11,7.56268332]
[1757061241472,7.71,207.17,207.15,1.31252872]
[1757061241771,4.3432,207.19,207.15,1.31252872]
[1757061241972,7.71,207.18,207.15,1.31252872]
[1757061243070,4.3432,207.19,207.15,1.31252872]
[1757061244473,7.71,207.18,207.15,1.31252872]
[1757061244668,4.3432,207.19,207.15,1.31252872]
[1757061244870,7.71,207.18,207.15,1.31252872]
[1757061245473,4.3432,207.19,207.15,1.31252872]
[1757061246277,7.71,207.18,207.15,1.31252872]
[1757061247778,4.3435,207.18,207.15,1.31252872]
[1757061248379,7.71,207.17,207.15,1.31252872]
[1757061248573,4.3435,207.18,207.15,1.31252872]
[1757061249879,7.71,207.17,207.15,1.31252872]
[1757061250073,4.3435,207.18,207.15,1.31252872]
[1757061250278,7.71,207.17,207.15,1.31252872]
[1757061250881,4.3435,207.18,207.15,1.31252872]
[1757061251081,7.71,207.17,207.15,1.31252872]
[1757061251786,4.3435,207.18,207.15,1.31252872]
[1757061252084,7.71,207.17,207.15,1.31252872]
[1757061252583,4.3435,207.18,207.15,1.31252872]
[1757061253779,7.71,207.17,207.15,1.31252872]
[1757061253978,131.81161534,207.24,207.16,7.53]
[1757061254184,131.81161534,207.24,207.17,1.31252872]
[1757061254685,131.81161534,207.24,207.18,0.03381598]
[1757061254885,4.3426,207.22,207.18,0.03381598]
[1757061255084,7.71,207.21,207.18,0.03381598]
[1757061255485,4.3426,207.22,207.18,0.03381598]
[1757061256176,7.71,207.21,207.18,0.03381598]
[1757061256587,4.3426,207.22,207.18,0.03381598]
[1757061256782,7.71,207.21,207.18,0.03381598]
[1757061257192,7.71,207.19,207.18,0.03381598]
[1757061281209,7.77,207.16,207.09,4.05683999]
[1757061281410,118.64,207.15,207.09,4.05683999]
[1757061281610,7.77,207.14,207.09,4.05683999]
[1757061281810,118.64,207.15,207.09,4.05683999]
[1757061282011,7.77,207.14,207.08,4.05683999]
[1757061282311,7.77,207.12,207.09,7.73]
[1757061282811,122.9846,207.13,207.09,7.73]
[1757061283019,7.77,207.11,207.09,7.73]
[1757061283311,118.64,207.13,207.08,4.05683999]
[1757061284212,4.3452,207.1,207.08,4.05683999]
[1757061284417,7.77,207.09,207.08,4.05683999]
[1757061287313,9.08252872,207.09,207.08,3.999e-05]
[1757061287712,9.08252872,207.09,207.03,7.9281117]
[1757061287917,7.77,207.09,207.0,9.04252872]
[1757061288119,7.52,207.07,207.0,9.04252872]
[1757061288419,118.64,207.06,207.0,9.04252872]
[1757061288817,126.16,207.06,207.0,9.36252872]
[1757061289119,11.8661,207.05,206.99,9.36256871]
[1757061289712,11.8661,207.05,206.99,8.05003999]
[1757061290013,7.52,207.03,207.0,8.05]
[1757061290214,126.16,207.04,206.99,1.31256871]
[1757061290417,126.16,207.04,207.0,8.05]
[1757061290615,126.16,207.04,206.99,1.31256871]
[1757061290821,126.16,207.04,207.0,8.05]
[1757061291215,122.9865,207.04,206.99,1.31256871]
[1757061291420,7.52,207.03,206.99,3.999e-05]
[1757061292518,4.3469,207.02,206.99,3.999e-05]
[1757061292722,118.64,207.01,206.99,3.999e-05]
[1757061293221,7.52,207.0,206.94,1.31252872]
[1757061295622,4.3473,207.0,206.95,1.31252872]
[1757061295825,126.16,207.0,206.98,8.05]
[1757061297124,7.52,207.0,206.98,8.05]
[1757061297319,7.52,207.07,206.99,1.31252872]
[1757061297518,11.8663,207.04,206.99,1.31252872]
[1757061297726,11.8663,207.04,207.0,8.05]
[1757061298426,7.52,207.03,207.0,8.05]
[1757061298625,126.16,207.03,207.0,8.05]
[1757061300121,7.52,207.07,207.0,8.05]
[1757061300419,62.96,207.06,207.0,8.05]
[1757061300823,7.52,207.05,207.0,8.05]
[1757061301225,62.96,207.06,207.0,8.05]
[1757061301727,7.52,207.04,207.0,8.05]
[1757061301929,4.3463,207.05,207.0,8.05]
[1757061302129,7.52,207.04,207.0,8.05]
[1757061302429,1.31252872,207.02,206.88,8.05]
[1757061302618,7.52,207.01,206.92,8.05]
[1757061302823,7.52,207.01,206.93,1.31252872]
[1757061303231,7.52,207.01,206.92,8.05]
[1757061303433,7.52,207.01,206.91,2.05494671]
[1757061303624,7.52,207.01,206.92,8.05]
[1757061303823,11.8669,207.01,206.92,8.05]
[1757061304330,7.52,207.01,206.92,8.05]
[1757061304630,4.3474,206.99,206.92,8.05]
[1757061305527,7.52,207.01,206.92,8.05]
[1757061305730,108.9,207.04,206.95,8.05]
[1757061306834,113.2463,207.04,206.95,8.05]
[1757061307632,4.3463,207.04,206.95,8.05]
[1757061307828,4.3463,207.04,206.97,2.05494671]
[1757061308229,7.52,207.05,206.97,2.05494671]
[1757061309430,7.52,207.05,206.98,8.05]
[1757061312234,7.52,207.08,206.98,8.05]
[1757061312427,7.52,207.08,207.01,8.05]
[1757061315137,4.3457,207.07,207.01,8.05]
[1757061320140,7.52,207.08,207.01,8.05]
[1757061320339,11.7453,207.1,207.01,8.05]
[1757061320840,7.4,207.08,207.01,8.05]
[1757061322342,11.7456,207.08,207.01,8.05]
[1757061324742,7.4,207.08,207.01,8.05]
[1757061327839,7.4,207.11,207.01,8.05]
[1757061328542,7.4,207.11,207.04,7.75]
[1757061330844,7.4,207.11,207.06,2.05494671]
[1757061331039,7.4,207.11,207.07,7.75]
[1757061331544,7.4,207.14,207.07,7.75]
[1757061335442,4.3445,207.13,207.07,7.75]
[1757061336350,7.4,207.12,207.06,2.05494671]
[1757061336545,11.7449,207.11,207.07,7.75]
[1757061336748,311.06,207.15,207.07,7.75]
[1757061336749,318.46,207.15,207.07,7.75]
[1757061337042,378.6351,207.15,207.07,7.75]
[1757061337244,7.4,207.14,207.03,2.05494671]
[1757061337444,67.5824,207.13,207.03,9.80494671]
[1757061337648,7.4,207.07,206.99,7.75]
[1757061337843,75.0033,207.07,206.98,5.38924549]
[1757061338145,7.4,207.02,206.98,5.38924549]
[1757061338344,7.4,207.06,206.98,5.38924549]
[1757061339248,7.4,207.03,206.98,5.38924549]
[1757061340053,186.3733,207.04,206.98,5.38924549]
[1757061340447,7.4,207.03,206.98,5.38924549]
[1757061340849,118.76,207.04,206.98,5.38924549]
[1757061341049,7.4,207.03,206.98,5.38924549]
[1757061341250,118.76,207.04,206.98,5.38924549]
[1757061341547,7.4,207.03,206.98,5.38924549]
[1757061341954,7.4,207.03,206.95,7.75]
[1757061343858,11.7469,207.03,206.95,7.75]
[1757061344552,7.4,207.03,206.95,7.75]
[1757061350864,4.347,207.02,206.95,7.75]
[1757061351064,7.58,207.01,206.95,7.75]
[1757061361679,7.58,207.01,206.91,8.13]
[1757061365380,7.58,207.01,206.94,8.13]
[1757061365580,7.58,207.04,206.96,1.31493792]
[1757061365884,7.58,207.0,206.96,1.31493792]
[1757061366082,127.45493792,207.06,206.97,8.13]
[1757061366288,8.89493792,207.06,206.97,8.13]
[1757061366588,7.58,207.01,206.97,8.13]
[1757061367182,7.58,207.0,206.96,1.31493792]
[1757061367581,4.3474,207.01,206.96,9.44493792]
[1757061367785,7.58,207.0,206.96,9.44493792]
[1757061368088,4.3474,207.01,206.96,9.44493792]
[1757061368390,7.58,207.02,206.93,8.13]
[1757061368687,7.58,207.02,206.94,1.31493792]
[1757061368889,7.58,206.98,206.94,1.31493792]
[1757061369390,4.3478,206.99,206.94,1.31493792]
[1757061370084,7.58,206.98,206.94,1.31493792]
[1757061370288,7.58,206.98,206.95,8.13]
[1757061370487,4.3478,206.99,206.94,1.31493792]
[1757061370684,7.58,206.98,206.94,9.44493792]
[1757061370987,75.2221,206.96,206.88,9.44493792]
[1757061371187,1.31493792,206.94,206.87,4.05454276]
[1757061371389,4.3491,206.92,206.87,4.05454276]
[1757061371588,7.58,206.93,206.87,4.05454276]
[1757061371883,7.58,206.88,206.87,4.05454276]
[1757061378286,7.58,206.88,206.82,9.44493792]
[1757061381996,7.58,206.88,206.84,9.34493792]
[1757061383289,7.99,206.91,206.86,1.31493792]
[1757061383495,7.99,206.94,206.88,1.31493792]
[1757061385891,4.3489,206.93,206.88,1.31493792]
[1757061386096,7.99,206.92,206.88,9.34493792]
[1757061387797,4.3489,206.93,206.88,9.34493792]
[1757061387993,7.99,206.92,206.88,9.34493792]
[1757061388298,7.99,206.9,206.88,9.34493792]
[1757061388493,7.99,206.9,206.88,1.31493792]
[1757061388698,7.99,206.9,206.86,9.34493792]
[1757061389103,4.3494,206.91,206.86,9.34493792]
[1757061389293,7.99,206.9,206.86,9.34493792]
[1757061389496,4.3494,206.91,206.86,9.34493792]
[1757061389695,7.99,206.9,206.86,9.34493792]
[1757061389891,7.99,206.9,206.87,8.03]
[1757061390296,7.99,206.92,206.84,1.31493792]
[1757061390896,126.59,206.92,206.84,1.31493792]
[1757061391101,4.3499,206.89,206.84,1.31493792]
[1757061391396,12.3399,206.89,206.85,8.03]
[1757061391598,7.99,206.93,206.87,8.03]
[1757061393003,7.99,206.91,206.84,1.31493792]
[1757061393196,7.99,206.91,206.84,9.34493792]
[1757061393902,4.3498,206.89,206.84,1.31493792]
[1757061394102,12.3398,206.89,206.85,8.03]
[1757061394601,7.99,206.88,206.85,8.03]
[1757061395397,4.3502,206.87,206.83,1.31493792]
[1757061395598,12.3402,206.87,206.81,1.31493792]
[1757061395999,4.3505,206.86,206.8,8.03]
[1757061397600,7.99,206.87,206.81,1.31493792]
[1757061398202,7.99,206.87,206.82,8.03]
[1757061398704,4.3495,206.9,206.84,8.03]
[1757061399000,7.99,206.89,206.84,8.03]
[1757061399201,7.99,206.9,206.81,9.34493792]
[1757061399403,7.99,206.9,206.81,8.03]
[1757061399704,7.99,206.88,206.81,8.03]
[1757061400206,7.99,206.83,206.76,9.34493792]
[1757061400404,7.99,206.83,206.78,1.31493792]
[1757061400905,7.99,206.86,206.79,8.03]
[1757061401511,4.3507,206.85,206.79,8.03]
[1757061402701,7.99,206.84,206.74,4.05454276]
[1757061402911,7.99,206.82,206.74,5.36948068]
[1757061403204,7.99,206.82,206.74,4.05454276]
[1757061403406,7.99,206.82,206.73,8.03]
[1757061403602,7.99,206.82,206.73,9.34493792]
[1757061404302,7.99,206.82,206.75,9.34493792]
[1757061405303,118.6,206.85,206.77,1.31493792]
[1757061405605,7.99,206.85,206.78,8.03]
[1757061405805,7.99,206.85,206.78,9.34493792]
[1757061407508,9.30493792,206.85,206.78,9.34493792]
[1757061407807,9.30493792,206.85,206.78,8.03]
[1757061408007,9.30493792,206.85,206.78,9.34493792]
[1757061408202,7.99,206.85,206.78,9.34493792]
[1757061408407,89.75493792,206.87,206.71,21.73454276]
[1757061408408,8.04,206.9,206.8,9.15493792]
[1757061408609,8.04,206.88,206.8,9.15493792]
[1757061410811,8.04,206.88,206.8,7.84]
[1757061410812,4.3505,206.86,206.8,7.84]
[1757061411113,4.3505,206.86,206.8,9.15493792]
[1757061411607,4.3505,206.86,206.8,7.84]
[1757061413213,12.3908,206.84,206.8,7.84]
[1757061416108,4.3512,206.83,206.8,7.84]
[1757061416313,8.04,206.82,206.75,13.20948068]
[1757061417012,4.351,206.84,206.75,9.72198068]
[1757061417309,4.351,206.84,206.79,1.31493792]
[1757061417617,4.351,206.84,206.78,7.84]
[1757061417618,4.3512,206.83,206.8,7.84]
[1757061418318,12.3912,206.83,206.8,7.84]
[1757061418613,4.3512,206.83,206.8,7.84]
[1757061418915,4.3506,206.85,206.79,1.31493792]
[1757061420115,4.3506,206.85,206.8,7.84]
[1757061420616,12.3906,206.85,206.81,7.84]
[1757061420916,8.04,206.85,206.79,1.31493792]
[1757061421119,8.04,206.88,206.81,9.15493792]
[1757061422214,4.3507,206.85,206.77,4.352]
[1757061422419,12.3907,206.85,206.79,1.31493792]
[1757061424220,4.3509,206.84,206.79,1.31493792]
[1757061424619,8.04,206.83,206.79,9.15493792]
[1757061424918,8.04,206.83,206.8,7.84]
[1757061425720,8.04,206.83,206.79,1.31493792]
[1757061425922,4.3509,206.84,206.8,7.84]
[1757061426318,12.3909,206.84,206.8,7.84]
[1757061426621,12.3909,206.84,206.79,1.31493792]
[1757061427023,12.3909,206.84,206.8,7.84]
[1757061427520,12.3909,206.84,206.77,4.352]
[1757061427713,12.3909,206.84,206.78,7.84]
[1757061430322,12.3911,206.83,206.76,7.84]
[1757061430523,8.04,206.83,206.76,7.84]
[1757061430817,4.3516,206.81,206.75,4.05454276]
[1757061431021,8.04,206.84,206.76,7.84]
[1757061431818,4.3518,206.8,206.76,7.84]
[1757061432026,12.3918,206.8,206.76,7.84]
[1757061432719,8.04,206.79,206.76,7.84]
[1757061435529,12.392,206.79,206.76,7.84]
[1757061435729,67.6772,206.85,206.73,6.11234422]
[1757061435730,75.7274,206.82,206.73,4.05454276]
[1757061436834,4.3523,206.78,206.73,4.05454276]
[1757061437035,8.04,206.78,206.73,4.05454276]
[1757061437238,8.04,206.79,206.73,4.05454276]
[1757061437836,4.3527,206.76,206.73,4.05454276]
[1757061438033,8.04,206.75,206.73,4.05454276]
[1757061438836,8.17,206.75,206.73,4.05454276]
[1757061439529,12.5229,206.74,206.73,4.05454276]
[1757061440039,8.17,206.74,206.73,4.05454276]
[1757061444940,8.17,206.74,206.66,11.85454276]
[1757061449337,74.91780146,206.77,206.66,11.85454276]
[1757061449534,8.17,206.76,206.66,11.85454276]
[1757061449732,74.91780146,206.77,206.66,11.85454276]
[1757061449928,8.17,206.76,206.66,11.85454276]
[1757061450133,74.91780146,206.77,206.66,11.85454276]
[1757061450338,8.17,206.76,206.66,11.85454276]
[1757061450839,4.3531,206.74,206.66,11.85454276]
[1757061451137,8.17,206.73,206.66,11.85454276]
[1757061451633,8.17,206.73,206.66,7.8]
[1757061457736,8.17,206.73,206.66,12.1544]
[1757061457943,10.22780146,206.81,206.66,7.8]
[1757061458141,8.17,206.8,206.69,7.8]
[1757061458342,90.01,206.8,206.69,7.8]
[1757061458541,12.5221,206.78,206.69,12.1539]
[1757061460644,12.5221,206.78,206.7,7.8]
[1757061460846,8.17,206.78,206.7,7.8]
[1757061463847,8.17,206.78,206.71,7.8]
[1757061466749,8.17,206.81,206.71,7.8]
[1757061467051,8.17,206.81,206.73,7.8]
[1757061467851,8.17,206.81,206.73,4.3531]
[1757061468052,8.17,206.81,206.74,7.8]
[1757061468545,8.17,206.81,206.74,12.1527]
[1757061468741,8.17,206.81,206.75,7.8]
[1757061469449,8.04,206.84,206.75,7.8]
[1757061469646,8.04,206.84,206.76,7.8]
[1757061470049,5.34161534,206.87,206.78,4.3519]
[1757061470249,5.34161534,206.87,206.79,7.8]
[1757061471357,5.34161534,206.87,206.79,12.1517]
[1757061473452,5.34161534,206.87,206.8,7.8]
[1757061473765,8.04,206.88,206.8,7.8]
[1757061474259,8.04,206.88,206.81,4.3514]
[1757061474460,8.04,206.88,206.82,7.8]
[1757061478560,35.06,206.9,206.79,12.1518]
[1757061478759,8.04,206.89,206.79,12.1518]
[1757061478962,35.06,206.9,206.79,12.1518]
[1757061479163,8.04,206.89,206.79,12.1518]
[1757061479656,8.04,206.89,206.8,7.8]
[1757061479861,8.04,206.89,206.81,4.3514]
[1757061480155,8.04,206.89,206.74,4.05454276]
[1757061480361,8.04,206.9,206.77,7.8]
[1757061481263,8.04,206.9,206.8,7.8]
[1757061482864,8.04,206.9,206.8,12.1514]
[1757061483564,8.04,206.9,206.81,4.3512]
[1757061483767,8.04,206.9,206.82,7.8]
[1757061484168,8.04,206.9,206.83,4.3509]
[1757061485566,8.04,206.9,206.82,7.8]
[1757061487571,8.04,206.9,206.82,12.151]
[1757061487763,8.04,206.9,206.83,1.31655979]
[1757061489776,8.04,206.9,206.82,12.151]
[1757061490069,8.04,206.9,206.84,1.31655979]
[1757061500174,4.3493,206.91,206.82,12.151]
[1757061500379,11.8096,206.9,206.82,9.11655979]
[1757061500574,13.12615979,206.9,206.82,9.11655979]
[1757061504987,11.8096,206.9,206.82,9.11655979]
[1757061505189,13.12615979,206.9,206.82,9.11655979]
[1757061506891,7.46,206.9,206.84,1.31655979]
[1757061507091,7.46,206.9,206.84,9.04655979]
[1757061508895,7.46,206.94,206.86,9.04655979]
[1757061509089,125.96,206.94,206.86,9.04655979]
[1757061509794,125.96,206.94,206.88,1.31655979]
[1757061511798,7.46,206.94,206.88,1.31655979]
[1757061512100,125.96,206.94,206.88,1.31655979]
[1757061512302,125.96,206.94,206.88,9.04655979]
[1757061512593,78.24554285,206.97,206.93,7.73]
[1757061512800,5.34161534,206.97,206.96,7.73]
[1757061513292,5.34161534,206.98,206.95,1.31655979]
[1757061513497,5.34161534,206.98,206.97,9.04655979]
[1757061514497,5.34161534,206.98,206.97,13.39455979]
[1757061519097,8.08628203,207.01,207.0,7.73]
[1757061519303,7.46,207.06,207.0,9.04655979]
[1757061519491,7.46,207.06,207.03,7.73]
[1757061519892,7.46,207.09,207.02,7.73]
[1757061520097,7.46,207.09,207.03,1.31655979]
[1757061520407,7.46,207.09,207.05,1.31655979]
[1757061520702,7.46,207.09,207.06,7.73]
[1757061520904,7.46,207.13,207.07,1.31655979]
[1757061521204,5.34713919,207.14,207.09,1.31655979]
[1757061521604,7.46,207.13,207.09,1.31655979]
[1757061521998,5.34713919,207.14,207.09,1.31655979]
[1757061522199,7.46,207.13,207.09,1.31655979]
[1757061523201,7.46,207.13,207.09,9.04655979]
[1757061523704,7.46,207.13,207.09,1.31655979]
[1757061523897,7.46,207.13,207.1,7.73]
[1757061524602,12.80713919,207.14,207.11,9.04655979]
[1757061525303,5.34713919,207.14,207.09,1.31655979]
[1757061525502,7.46,207.13,207.09,9.04655979]
[1757061526193,7.46,207.13,207.1,7.73]
[1757061526900,7.46,207.13,207.05,12.0762]
[1757061527104,7.46,207.13,207.07,1.31655979]
[1757061529302,7.46,207.13,207.09,9.05655979]
[1757061529695,7.87,207.17,207.11,1.31655979]
[1757061529899,7.87,207.2,207.13,1.31655979]
[1757061530807,7.87,207.2,207.13,9.05655979]
[1757061536004,12.2134,207.2,207.13,7.74]
[1757061536208,7.87,207.19,207.12,1.31655979]
[1757061542706,7.87,207.19,207.04,67.6139]
[1757061542707,7.87,207.19,207.04,4.3464]
[1757061542912,7.87,207.17,207.09,1.31655979]
[1757061543917,7.87,207.14,207.09,1.31655979]
[1757061544217,12.2143,207.15,207.09,9.05655979]
[1757061546814,1.31655979,207.19,207.11,1.31655979]
[1757061547010,7.87,207.16,207.11,1.31655979]
[1757061547216,4.3438,207.17,207.11,1.31655979]
[1757061547415,12.2138,207.17,207.11,1.31655979]
[1757061548520,7.87,207.17,207.13,9.05655979]
[1757061548715,7.87,207.17,207.14,7.74]
[1757061549723,118.44,207.19,207.11,7.74]
[1757061550921,7.87,207.2,207.11,7.74]
[1757061551620,7.87,207.23,207.11,4.3449]
[1757061551824,7.87,207.23,207.17,7.74]
[1757061552824,311.24,207.28,207.17,7.74]
[1757061553024,7.87,207.27,207.17,7.74]
[1757061553627,7.87,207.27,207.2,7.74]
[1757061554220,7.87,207.27,207.2,9.79116271]
[1757061555925,118.48,207.31,207.2,2.05116271]
[1757061556129,7.87,207.3,207.21,7.74]
[1757061557324,7.87,207.34,207.26,2.05116271]
[1757061557518,7.87,207.34,207.27,7.74]
[1757061558021,67.5149,207.35,207.18,7.65]
[1757061558230,75.2527,207.32,207.21,7.65]
[1757061558427,4.3414,207.29,207.21,7.65]
[1757061558624,7.73,207.32,207.23,2.05116271]
[1757061559525,7.73,207.34,207.21,9.70116271]
[1757061560029,67.5149,207.35,207.21,9.70116271]
[1757061561229,7.73,207.34,207.21,9.70116271]
[1757061561830,67.5149,207.35,207.21,9.70116271]
[1757061562129,7.73,207.34,207.21,9.70116271]
[1757061562429,67.5149,207.35,207.21,9.70116271]
[1757061562631,7.73,207.34,207.21,9.70116271]
[1757061563130,67.5149,207.35,207.21,9.70116271]
[1757061563329,7.73,207.34,207.21,9.70116271]
[1757061563634,67.5149,207.35,207.21,9.70116271]
[1757061564129,67.5149,207.35,207.21,2.05116271]
[1757061564331,7.73,207.34,207.22,7.65]
[1757061566926,4.3407,207.33,207.25,7.65]
[1757061568831,7.73,207.32,207.25,7.65]
[1757061569031,7.73,207.32,207.22,7.65]
[1757061569735,4.3414,207.29,207.22,7.65]
[1757061571135,4.3417,207.28,207.22,7.65]
[1757061571337,7.73,207.28,207.22,7.65]
[1757061571731,12.0716,207.28,207.22,7.65]
[1757061573535,4.3412,207.3,207.22,7.65]
[1757061573735,4.3412,207.3,207.24,7.65]
[1757061574541,7.73,207.28,207.2,9.70116271]
[1757061575037,7.73,207.28,207.2,2.05116271]
[1757061575241,7.73,207.28,207.21,7.65]
[1757061575938,4.3418,207.27,207.21,7.65]
[1757061577041,7.73,207.26,207.21,7.65]
[1757061577336,7.73,207.24,207.21,7.65]
[1757061577542,7.73,207.24,207.17,7.65]
[1757061578140,7.73,207.23,207.14,4.05454276]
[1757061578641,7.73,207.23,207.15,7.65]
[1757061578945,12.0728,207.23,207.15,7.65]
[1757061581046,4.3431,207.21,207.15,7.65]
[1757061583436,4.3434,207.2,207.14,7.65]
[1757061585340,7.73,207.22,207.11,7.65]
[1757061585341,75.2898,207.21,207.11,7.65]
[1757061586943,4.3439,207.17,207.11,7.65]
[1757061587349,7.73,207.18,207.11,7.65]
[1757061587544,4.3447,207.13,207.11,7.65]
[1757061588141,8.01,207.14,207.11,7.65]
[1757061588743,8.01,207.18,207.1,7.83]
[1757061589046,12.3538,207.18,207.1,7.83]
[1757061589347,8.01,207.23,207.13,7.83]
[1757061590347,4.3436,207.19,207.13,7.83]
[1757061590550,12.3536,207.19,207.13,7.83]
[1757061593840,4.3438,207.18,207.12,2.05116271]
[1757061594248,4.3438,207.18,207.12,9.88116271]
[1757061602854,12.3533,207.2,207.13,7.83]
[1757061603055,4.3433,207.2,207.13,7.83]
[1757061603952,4.3433,207.2,207.13,12.1747]
[1757061604243,4.3433,207.2,207.13,7.83]
[1757061607957,4.3433,207.2,207.13,12.1745]
[1757061608451,8.01,207.21,207.14,7.83]
[1757061609356,8.01,207.21,207.14,9.88116271]
[1757061611257,12.3532,207.21,207.14,9.88116271]
[1757061611457,4.3432,207.21,207.16,1.3124572]
[1757061611952,8.01,207.2,207.16,9.1424572]
[1757061612156,4.3432,207.21,207.16,9.1424572]
[1757061612658,8.01,207.2,207.16,9.1424572]
[1757061613348,4.3432,207.21,207.16,9.1424572]
[1757061613755,8.01,207.2,207.16,9.1424572]
[1757061613955,4.3432,207.21,207.16,9.1424572]
[1757061614149,8.01,207.2,207.16,9.1424572]
[1757061614547,4.3432,207.21,207.16,9.1424572]
[1757061614745,8.01,207.2,207.16,9.1424572]
[1757061614957,4.3432,207.21,207.16,9.1424572]
[1757061615156,8.01,207.2,207.16,9.1424572]
[1757061615752,8.01,207.19,207.15,1.3124572]
[1757061616254,4.3434,207.2,207.15,1.3124572]
[1757061616756,8.01,207.19,207.15,1.3124572]
[1757061616953,4.3434,207.2,207.15,9.1424572]
[1757061617456,8.01,207.19,207.15,9.1424572]
[1757061617657,4.3434,207.2,207.15,9.1424572]
[1757061617858,8.01,207.19,207.15,9.1424572]
[1757061618059,7.49,207.19,207.15,9.1424572]
[1757061618460,4.3434,207.2,207.15,9.1424572]
[1757061618760,7.49,207.18,207.15,7.83]
[1757061619060,4.3436,207.19,207.13,1.3124572]
[1757061619756,7.49,207.17,207.11,13.02699996]
[1757061620056,7.49,207.18,207.11,4.05454276]
[1757061620460,7.49,207.16,207.11,4.05454276]
[1757061621860,7.49,207.14,207.11,4.05454276]
[1757061622452,7.49,207.12,207.11,4.05454276]
[1757061624963,7.49,207.12,207.08,1.3124572]
[1757061625265,7.49,207.12,207.08,8.9724572]
[1757061626562,7.49,207.16,207.06,1.3124572]
[1757061626757,1.3124572,207.13,207.05,11.71454276]
[1757061626961,7.49,207.12,207.05,11.71454276]
[1757061627661,4.3455,207.1,207.05,11.71454276]